[Event "FIDE World Rapid-ch Open 2018"]
[White "Yilmaz, Mustafa"]
[Black "Kabanov, Nikolai"]
[Site "St. Petersburg"]
[Round "2.80"]
[Annotator "ChessBase"]
[Result "1-0"]
[Date "2018.12.26"]
[WhiteElo "2636"]
[BlackElo "2450"]
[PlyCount "76"]
[TimeControl "900+10"]

1. d4 {[%emt 0:0:0]} d6 {[%emt 0:0:0]} 2. Nf3 {[%emt 0:0:1]} Nf6 {[%emt 0:0:0]
} 3. c4 {[%emt 0:0:4]} Nbd7 {[%emt 0:0:0]} 4. Nc3 {[%emt 0:0:0]} e5 {[%emt 0:0:1]} 5. e4 {[%emt 0:0:8]} g6 {[%emt 0:0:13]} 6. Be2 {[%emt 0:0:2]
} Bg7 {[%emt 0:0:1]} 7. 0-0 {[%emt 0:0:3]} 0-0 {[%emt 0:0:0]} 8. Be3 {[%emt 0:0:5]} h6 {[%emt 0:0:28]} 9. dxe5 {[%emt 0:1:2]} dxe5 {[%emt 0:0:9]} 10. Qc1 {[%emt 0:0:15]} Ng4 {[%emt 0:0:29]} 11. Bd2 {[%emt 0:0:5]
} Kh7 {[%emt 0:1:32]} 12. Rd1 {[%emt 0:1:44]} c6 {[%emt 0:0:0]} 13. c5 {[%emt 0:3:39]} Qe7 {[%emt 0:0:42]} 14. b4 {[%emt 0:0:7]} a5 {[%emt 0:0:47]
} 15. a3 {[%emt 0:0:2]} axb4 {[%emt 0:0:23]} 16. axb4 {[%emt 0:0:2]
} Rxa1 {[%emt 0:0:2]} 17. Qxa1 {[%emt 0:0:1]} f5 {[%emt 0:0:0]} 18. Qb1 {[%emt 0:1:59]} f4 {[%emt 0:1:9]} 19. Na4 {[%emt 0:0:30]} h5 {[%emt 0:0:41]
} 20. Bc3 {[%emt 0:0:40]} Re8 {[%emt 0:1:30]} 21. Nb2 {[%emt 0:0:0]} Nh6 {[%emt 0:0:55]} 22. Nc4 {[%emt 0:0:2]} Nf7 {[%emt 0:0:3]} 23. Nd6 {[%emt 0:2:57]} Nxd6 {[%emt 0:0:3]} 24. Rxd6 {[%emt 0:0:2]} Nf8 {[%emt 0:0:52]
} 25. h4 {[%emt 0:2:13]} Bf6 {[%emt 0:0:14]} 26. Qb2 {[%emt 0:0:0]} Bg4 {[%emt 0:0:32]} 27. b5 {[%emt 0:0:11]} Bxf3 {[%emt 0:0:25]} 28. Bxf3 {[%emt 0:0:11]} Rc8 {[%emt 0:4:0]} 29. g3 {[%emt 0:0:1]} fxg3 {[%emt 0:0:11]
} 30. fxg3 {[%emt 0:0:2]} Bg7 {[%emt 0:0:50]} 31. Qb3 {[%emt 0:1:37]
} cxb5 {[%emt 0:0:11]} 32. Qd5 {[%emt 0:0:10]} Ne6 {[%emt 0:0:0]} 33. Qxe6 {[%emt 0:0:33]} Qxe6 {[%emt 0:0:12]} 34. Rxe6 {[%emt 0:0:1]} Rxc5 {[%emt 0:0:2]} 35. Be1 {[%emt 0:0:30]} Bf8 {[%emt 0:0:32]} 36. Rb6 {[%emt 0:0:6]
} Rc1 {[%emt 0:0:13]} 37. Rxb7+ {[%emt 0:0:2]} Kg8 {[%emt 0:0:0]} 38. Kf2 {[%emt 0:0:2]} b4 {[%emt 0:0:11]} 1-0

[Event "FIDE World Rapid-ch Open 2018"]
[White "Perdomo, Carlos Andres"]
[Black "Goganov, Aleksey"]
[Site "St. Petersburg"]
[Round "2.81"]
[Annotator "ChessBase"]
[Result "0-1"]
[Date "2018.12.26"]
[WhiteElo "2301"]
[BlackElo "2612"]
[PlyCount "70"]
[TimeControl "900+10"]

1. Nf3 {[%emt 0:0:0]} d5 {[%emt 0:0:0]} 2. g3 {[%emt 0:0:16]} c6 {[%emt 0:0:0]} 3. Bg2 {[%emt 0:0:10]} Bg4 {[%emt 0:0:10]} 4. d4 {[%emt 0:0:37]} Nd7 {[%emt 0:0:10]} 5. Nbd2 {[%emt 0:0:20]} Ngf6 {[%emt 0:0:10]} 6. c4 {[%emt 0:0:0]} e6 {[%emt 0:0:10]} 7. h3 {[%emt 0:1:3]} Bh5 {[%emt 0:0:10]} 8. 0-0 {[%emt 0:0:44]} Be7 {[%emt 0:0:10]} 9. b3 {[%emt 0:1:20]} 0-0 {[%emt 0:0:0]} 10. Bb2 {[%emt 0:0:10]} a5 {[%emt 0:0:19]} 11. a3 {[%emt 0:0:10]} h6 {[%emt 0:0:25]
} 12. Ne5 {[%emt 0:0:43]} Nxe5 {[%emt 0:1:9]} 13. dxe5 {[%emt 0:0:10]
} Nd7 {[%emt 0:0:10]} 14. g4 {[%emt 0:1:16]} Bg6 {[%emt 0:0:0]} 15. f4 {[%emt 0:0:10]} f6 {[%emt 0:1:20]} 16. f5 {[%emt 0:0:59]} Bf7 {[%emt 0:0:42]
} 17. cxd5 {[%emt 0:2:45]} cxd5 {[%emt 0:0:10]} 18. exf6 {[%emt 0:0:39]
} Bxf6 {[%emt 0:0:11]} 19. Bxf6 {[%emt 0:0:18]} Qxf6 {[%emt 0:0:0]} 20. fxe6 {[%emt 0:0:59]} Qxe6 {[%emt 0:0:10]} 21. Nf3 {[%emt 0:0:13]
} Qe3+ {[%emt 0:0:10]} 22. Kh1 {[%emt 0:0:14]} Nf6 {[%emt 0:0:59]} 23. Qd3 {[%emt 0:1:40]
} Rae8 {[%emt 0:0:51]} 24. Qxe3 {[%emt 0:0:20]} Rxe3 {[%emt 0:0:0]} 25. Nd4 {[%emt 0:0:10]} Bg6 {[%emt 0:0:45]} 26. Rac1 {[%emt 0:0:56]} Be4 {[%emt 0:0:12]} 27. Bf3 {[%emt 0:0:54]} h5 {[%emt 0:0:45]} 28. g5 {[%emt 0:1:2]
} Nh7 {[%emt 0:0:15]} 29. h4 {[%emt 0:0:16]} Rxe2 {[%emt 0:0:0]} 30. Rc7 {[%emt 0:0:29]} Rd2 {[%emt 0:0:44]} 31. g6 {[%emt 0:0:13]} Rxd4 {[%emt 0:0:31]} 32. gxh7+ {[%emt 0:0:10]} Kh8 {[%emt 0:0:10]} 33. Rc3 {[%emt 0:0:10]
} Rd3 {[%emt 0:0:33]} 34. Rxd3 {[%emt 0:0:15]} Bxd3 {[%emt 0:0:0]} 35. Rf2 {[%emt 0:0:12]} Rxf3 {[%emt 0:0:10]} 0-1

[Event "FIDE World Rapid-ch Open 2018"]
[White "Hakobyan, Aram"]
[Black "Fakhrutdinov, Timur"]
[Site "St. Petersburg"]
[Round "2.82"]
[Annotator "ChessBase"]
[Result "1/2-1/2"]
[Date "2018.12.26"]
[WhiteElo "2545"]
[BlackElo "2481"]
[PlyCount "93"]
[TimeControl "900+10"]

1. Nf3 {[%emt 0:0:0]} Nf6 {[%emt 0:0:0]} 2. c4 {[%emt 0:0:0]} e6 {[%emt 0:0:0]
} 3. Nc3 {[%emt 0:0:9]} d5 {[%emt 0:0:0]} 4. d4 {[%emt 0:0:0]} dxc4 {[%emt 0:0:6]} 5. e3 {[%emt 0:0:22]} a6 {[%emt 0:0:5]} 6. Bxc4 {[%emt 0:0:7]
} b5 {[%emt 0:0:8]} 7. Bd3 {[%emt 0:0:19]} c5 {[%emt 0:0:14]} 8. 0-0 {[%emt 0:0:5]} Bb7 {[%emt 0:0:23]} 9. Qe2 {[%emt 0:0:37]} Nbd7 {[%emt 0:0:5]
} 10. Rd1 {[%emt 0:0:18]} Qb8 {[%emt 0:0:15]} 11. b3 {[%emt 0:0:0]} Bd6 {[%emt 0:1:4]} 12. h3 {[%emt 0:0:14]} 0-0 {[%emt 0:1:23]} 13. Bb2 {[%emt 0:0:2]} cxd4 {[%emt 0:2:22]} 14. Nxd4 {[%emt 0:1:25]} Nc5 {[%emt 0:0:38]
} 15. Bc2 {[%emt 0:0:15]} Rd8 {[%emt 0:2:4]} 16. Rac1 {[%emt 0:1:14]
} Be7 {[%emt 0:0:30]} 17. Bb1 {[%emt 0:1:40]} b4 {[%emt 0:0:0]} 18. Na4 {[%emt 0:0:3]} Nxa4 {[%emt 0:0:9]} 19. bxa4 {[%emt 0:0:1]} Rc8 {[%emt 0:0:38]} 20. e4 {[%emt 0:2:14]} Qf4 {[%emt 0:1:10]} 21. Qf3 {[%emt 0:2:15]
} Qxf3 {[%emt 0:2:14]} 22. gxf3 {[%emt 0:0:1]} Kf8 {[%emt 0:0:0]} 23. Nb3 {[%emt 0:0:22]} Rxc1 {[%emt 0:0:59]} 24. Rxc1 {[%emt 0:0:41]
} Rc8 {[%emt 0:0:1]} 25. Bd3 {[%emt 0:0:55]} Rxc1+ {[%emt 0:0:49]} 26. Bxc1 {[%emt 0:0:1]} Nd7 {[%emt 0:0:9]} 27. Be3 {[%emt 0:0:27]} Bd8 {[%emt 0:0:0]} 28. Kf1 {[%emt 0:1:33]} Ke8 {[%emt 0:0:10]} 29. Ke2 {[%emt 0:0:8]} Ne5 {[%emt 0:0:19]} 30. Nc5 {[%emt 0:0:58]} Nxd3 {[%emt 0:0:7]} 31. Nxb7 {[%emt 0:0:16]
} Nb2 {[%emt 0:0:4]} 32. Nc5 {[%emt 0:0:39]} a5 {[%emt 0:0:0]} 33. Bd4 {[%emt 0:0:10]} Nc4 {[%emt 0:0:26]} 34. Nb7 {[%emt 0:0:53]} Bb6 {[%emt 0:0:15]} 35. Kd3 {[%emt 0:0:1]} Bxd4 {[%emt 0:0:8]} 36. Kxc4 {[%emt 0:0:53]
} Bxf2 {[%emt 0:0:7]} 37. Nxa5 {[%emt 0:0:4]} Kd7 {[%emt 0:0:0]} 38. Kb5 {[%emt 0:0:2]} f5 {[%emt 0:0:9]} 39. exf5 {[%emt 0:0:24]} exf5 {[%emt 0:0:1]} 40. Nc6 {[%emt 0:0:1]} g5 {[%emt 0:0:15]} 41. a5 {[%emt 0:0:6]
} h5 {[%emt 0:0:12]} 42. Ne5+ {[%emt 0:0:36]} Kc7 {[%emt 0:0:0]} 43. a6 {[%emt 0:0:15]} Bd4 {[%emt 0:0:18]} 44. Nc6 {[%emt 0:0:13]} Bf2 {[%emt 0:0:6]} 45. Ne5 {[%emt 0:0:17]} Bd4 {[%emt 0:0:4]} 46. Nc6 {[%emt 0:0:1]
} Bf2 {[%emt 0:0:8]} 47. Ne5 {[%emt 0:0:26]} 1/2-1/2

[Event "FIDE World Rapid-ch Open 2018"]
[White "Sychev, Klementy"]
[Black "Pogosyan, Stefan"]
[Site "St. Petersburg"]
[Round "2.83"]
[Annotator "ChessBase"]
[Result "1-0"]
[Date "2018.12.26"]
[WhiteElo "2537"]
[BlackElo "2365"]
[PlyCount "105"]
[TimeControl "900+10"]

1. e4 {[%emt 0:0:0]} e5 {[%emt 0:0:9]} 2. Nf3 {[%emt 0:0:0]} Nc6 {[%emt 0:0:1]
} 3. Bb5 {[%emt 0:0:5]} a6 {[%emt 0:0:1]} 4. Ba4 {[%emt 0:0:0]} Nf6 {[%emt 0:0:1]} 5. 0-0 {[%emt 0:0:2]} Be7 {[%emt 0:0:2]} 6. d3 {[%emt 0:0:2]
} b5 {[%emt 0:0:3]} 7. Bb3 {[%emt 0:0:1]} 0-0 {[%emt 0:0:3]
} 8. a4 {[%emt 0:0:1]} Bb7 {[%emt 0:0:13]} 9. Re1 {[%emt 0:0:15]} d6 {[%emt 0:0:5]
} 10. Bd2 {[%emt 0:2:1]} b4 {[%emt 0:2:29]} 11. a5 {[%emt 0:0:0]} d5 {[%emt 0:2:1]} 12. Bg5 {[%emt 0:5:43]} dxe4 {[%emt 0:1:19]} 13. dxe4 {[%emt 0:0:3]} Qxd1 {[%emt 0:3:6]} 14. Rxd1 {[%emt 0:0:2]} Nxe4 {[%emt 0:0:44]
} 15. Bxe7 {[%emt 0:0:3]} Nxe7 {[%emt 0:0:2]} 16. Nxe5 {[%emt 0:0:4]
} Rad8 {[%emt 0:4:23]} 17. Re1 {[%emt 0:3:34]} Nc6 {[%emt 0:0:0]} 18. Nd3 {[%emt 0:2:44]} Nd4 {[%emt 0:0:23]} 19. Ba4 {[%emt 0:0:24]} b3 {[%emt 0:0:51]} 20. cxb3 {[%emt 0:0:5]} Nc2 {[%emt 0:0:3]} 21. Na3 {[%emt 0:1:2]
} Nxa3 {[%emt 0:0:34]} 22. Nb4 {[%emt 0:0:8]} Nb5 {[%emt 0:0:0]} 23. Nxa6 {[%emt 0:0:36]} Bxa6 {[%emt 0:0:34]} 24. Rxe4 {[%emt 0:0:1]} Nd4 {[%emt 0:0:2]} 25. h3 {[%emt 0:0:23]} c5 {[%emt 0:0:7]} 26. Re5 {[%emt 0:0:14]
} Rb8 {[%emt 0:0:20]} 27. Rd1 {[%emt 0:0:44]} Rfc8 {[%emt 0:0:0]} 28. Kh2 {[%emt 0:0:26]} h6 {[%emt 0:0:2]} 29. Re7 {[%emt 0:0:4]} Kf8 {[%emt 0:0:19]} 30. Ra7 {[%emt 0:0:7]} Be2 {[%emt 0:0:6]} 31. Rd2 {[%emt 0:0:8]
} Bb5 {[%emt 0:0:13]} 32. a6 {[%emt 0:0:13]} Bxa4 {[%emt 0:0:0]} 33. bxa4 {[%emt 0:0:1]} Rb4 {[%emt 0:0:2]} 34. Rb7 {[%emt 0:0:17]} Rxb7 {[%emt 0:0:10]} 35. axb7 {[%emt 0:0:1]} Rb8 {[%emt 0:0:3]} 36. b4 {[%emt 0:0:3]
} Rxb7 {[%emt 0:0:1]} 37. bxc5 {[%emt 0:0:13]} Nb3 {[%emt 0:0:0]} 38. c6 {[%emt 0:0:37]} Rc7 {[%emt 0:0:5]} 39. Rb2 {[%emt 0:0:25]} Na5 {[%emt 0:0:3]} 40. g4 {[%emt 0:0:13]} Rxc6 {[%emt 0:0:18]} 41. Rb5 {[%emt 0:0:8]
} Ra6 {[%emt 0:0:2]} 42. h4 {[%emt 0:0:9]} Nc6 {[%emt 0:0:0]} 43. Rc5 {[%emt 0:0:3]} Ke7 {[%emt 0:0:1]} 44. Kg3 {[%emt 0:0:4]} Kd6 {[%emt 0:0:10]} 45. Rc4 {[%emt 0:0:4]} Ne5 {[%emt 0:0:8]} 46. Rd4+ {[%emt 0:0:18]
} Kc5 {[%emt 0:0:11]} 47. Rf4 {[%emt 0:0:2]} f6 {[%emt 0:0:0]} 48. g5 {[%emt 0:0:1]} fxg5 {[%emt 0:0:8]} 49. hxg5 {[%emt 0:0:2]} h5 {[%emt 0:0:41]} 50. Rf5 {[%emt 0:0:5]} Kd4 {[%emt 0:0:3]} 51. f4 {[%emt 0:0:0]} Nc4 {[%emt 0:0:4]} 52. Rf7 {[%emt 0:0:6]} g6 {[%emt 0:0:2]} 53. f5 {[%emt 0:0:54]} 1-0

[Event "FIDE World Rapid-ch Open 2018"]
[White "Vorotnikov, Vladislav V"]
[Black "Rechlis, Gad"]
[Site "St. Petersburg"]
[Round "2.84"]
[Annotator "ChessBase"]
[Result "0-1"]
[Date "2018.12.26"]
[WhiteElo "2417"]
[BlackElo "2521"]
[PlyCount "141"]
[TimeControl "900+10"]

1. d4 {[%emt 0:0:4]} Nf6 {[%emt 0:0:0]} 2. Nf3 {[%emt 0:0:0]} e6 {[%emt 0:0:0]
} 3. c3 {[%emt 0:0:0]} c5 {[%emt 0:0:20]} 4. e3 {[%emt 0:0:0]} d5 {[%emt 0:0:38]} 5. Nbd2 {[%emt 0:0:7]} Nbd7 {[%emt 0:0:24]} 6. Ne5 {[%emt 0:0:18]} Nxe5 {[%emt 0:0:43]} 7. dxe5 {[%emt 0:0:2]} Nd7 {[%emt 0:0:0]} 8. f4 {[%emt 0:0:3]} c4 {[%emt 0:1:44]} 9. e4 {[%emt 0:4:16]} Nc5 {[%emt 0:1:43]
} 10. Qf3 {[%emt 0:0:26]} b5 {[%emt 0:0:28]} 11. exd5 {[%emt 0:0:0]} Bb7 {[%emt 0:0:2]} 12. b4 {[%emt 0:0:43]} Bxd5 {[%emt 0:1:10]} 13. Qe3 {[%emt 0:0:27]} Na4 {[%emt 0:0:29]} 14. Nf3 {[%emt 0:0:47]} a5 {[%emt 0:0:0]} 15. a3 {[%emt 0:0:55]} Be7 {[%emt 0:1:6]} 16. Be2 {[%emt 0:0:18]} 0-0 {[%emt 0:0:18]} 17. 0-0 {[%emt 0:0:14]} Qc7 {[%emt 0:0:48]} 18. Bd2 {[%emt 0:0:41]
} Rfd8 {[%emt 0:0:20]} 19. Nd4 {[%emt 0:0:7]} Qb7 {[%emt 0:0:0]} 20. Qg3 {[%emt 0:0:14]} Be4 {[%emt 0:0:28]} 21. Qf2 {[%emt 0:3:55]} g6 {[%emt 0:1:2]} 22. Bf3 {[%emt 0:0:22]} Bxf3 {[%emt 0:0:38]} 23. Qxf3 {[%emt 0:0:30]
} Qxf3 {[%emt 0:0:33]} 24. Rxf3 {[%emt 0:0:32]} axb4 {[%emt 0:0:0]} 25. axb4 {[%emt 0:0:2]} Bxb4 {[%emt 0:0:8]} 26. Nxb5 {[%emt 0:0:0]} Bc5+ {[%emt 0:1:52]} 27. Be3 {[%emt 0:0:3]} Bxe3+ {[%emt 0:0:46]} 28. Rxe3 {[%emt 0:0:3]} Nb2 {[%emt 0:0:8]} 29. Rxa8 {[%emt 0:0:29]} Rxa8 {[%emt 0:0:1]
} 30. g3 {[%emt 0:0:57]} Ra1+ {[%emt 0:0:54]} 31. Kg2 {[%emt 0:0:0]} Rc1 {[%emt 0:0:2]} 32. Re2 {[%emt 0:0:25]} Nd1 {[%emt 0:0:8]} 33. Ra2 Nxc3 {[%emt 0:0:43]} 34. Ra8+ {[%emt 0:0:55]} Kg7 {[%emt 0:0:1]} 35. Nd6 {[%emt 0:0:1]} Nd5 {[%emt 0:0:34]} 36. Ra7 {[%emt 0:0:18]} c3 {[%emt 0:0:0]} 37. Nxf7 {[%emt 0:0:15]} c2 {[%emt 0:0:40]} 38. Ng5+ {[%emt 0:0:4]} Kf8 {[%emt 0:0:2]} 39. Nxe6+ {[%emt 0:0:8]} Ke8 {[%emt 0:0:2]} 40. Nc7+ {[%emt 0:0:6]
} Kd8 {[%emt 0:0:36]} 41. Nxd5 {[%emt 0:0:44]} Rg1+ {[%emt 0:0:0]} 42. Kxg1 {[%emt 0:0:5]} c1=Q+ {[%emt 0:0:3]} 43. Kg2 {[%emt 0:0:0]} Qd2+ {[%emt 0:0:18]} 44. Kh3 {[%emt 0:0:4]} Qxd5 {[%emt 0:0:4]} 45. Rxh7 {[%emt 0:0:3]} Ke8 {[%emt 0:0:47]} 46. Kg4 {[%emt 0:0:9]} Kf8 {[%emt 0:0:38]
} 47. Kg5 {[%emt 0:0:13]} Kg8 {[%emt 0:0:11]} 48. Ra7 {[%emt 0:0:0]} Qe4 {[%emt 0:0:4]} 49. g4 {[%emt 0:0:8]} Qe3 {[%emt 0:0:7]} 50. Rb7 {[%emt 0:0:12]} Qe4 {[%emt 0:0:5]} 51. Ra7 {[%emt 0:0:7]} Qd4 {[%emt 0:0:1]
} 52. Rb7 {[%emt 0:0:12]} Qd5 {[%emt 0:0:9]} 53. Ra7 {[%emt 0:0:0]} Qc6 {[%emt 0:0:6]} 54. h4 {[%emt 0:0:35]} Qc5 {[%emt 0:0:5]} 55. Rd7 {[%emt 0:0:14]} Qf8 {[%emt 0:0:30]} 56. f5 {[%emt 0:0:13]} gxf5 {[%emt 0:0:5]
} 57. gxf5 {[%emt 0:0:3]} Qc5 {[%emt 0:0:10]} 58. e6 {[%emt 0:0:0]} Qe3+ {[%emt 0:0:3]} 59. Kf6 {[%emt 0:0:12]} Qh6+ {[%emt 0:0:11]} 60. Ke5 {[%emt 0:0:3]} Qxh4 {[%emt 0:0:5]} 61. Rf7 {[%emt 0:0:7]} Qb4 {[%emt 0:0:16]
} 62. Rd7 {[%emt 0:0:6]} Qc3+ {[%emt 0:0:4]} 63. Ke4 {[%emt 0:0:5]
} Kf8 {[%emt 0:0:1]} 64. Rf7+ {[%emt 0:0:3]} Ke8 {[%emt 0:0:0]} 65. Rd7 {[%emt 0:0:1]} Qg3 66. Rf7 {[%emt 0:0:5]} Qg4+ {[%emt 0:0:31]
} 67. Ke5 {[%emt 0:0:4]} Qg3+ {[%emt 0:0:4]} 68. Ke4 {[%emt 0:0:5]} Qg5 {[%emt 0:0:40]
} 69. Kf3 {[%emt 0:0:27]} Qh4 {[%emt 0:0:49]} 70. Rd7 Kf8 71. Ke2 0-1

[Event "FIDE World Rapid-ch Open 2018"]
[White "Chen, Qi b"]
[Black "Zablotsky, Sergei"]
[Site "St. Petersburg"]
[Round "2.85"]
[Annotator "ChessBase"]
[Result "1-0"]
[Date "2018.12.26"]
[WhiteElo "2437"]
[BlackElo "2511"]
[PlyCount "93"]
[TimeControl "900+10"]

1. e4 {[%emt 0:0:0]} d6 {[%emt 0:0:0]} 2. d4 {[%emt 0:0:0]} Nf6 {[%emt 0:0:0]} 3. Nc3 {[%emt 0:0:0]} e5 {[%emt 0:0:0]} 4. Nf3 {[%emt 0:0:3]} Nbd7 {[%emt 0:0:0]} 5. Bc4 {[%emt 0:0:9]} Be7 {[%emt 0:0:2]} 6. 0-0 {[%emt 0:0:3]
} 0-0 {[%emt 0:0:2]} 7. Re1 {[%emt 0:0:5]} c6 {[%emt 0:0:2]
} 8. a4 {[%emt 0:0:5]} exd4 {[%emt 0:0:10]} 9. Nxd4 {[%emt 0:0:2]} Ne5 {[%emt 0:0:2]
} 10. Bb3 {[%emt 0:1:13]} Re8 {[%emt 0:0:14]} 11. h3 {[%emt 0:0:0]} Bd7 {[%emt 0:0:40]} 12. Bf4 {[%emt 0:0:31]} Qc7 {[%emt 0:1:20]} 13. Bh2 {[%emt 0:1:39]} Bf8 {[%emt 0:1:56]} 14. Kh1 {[%emt 0:0:21]} Rad8 {[%emt 0:0:42]
} 15. f4 {[%emt 0:1:44]} Ng6 {[%emt 0:0:2]} 16. Qf3 {[%emt 0:0:0]} a6 {[%emt 0:0:34]} 17. Re3 {[%emt 0:3:17]} c5 {[%emt 0:0:38]} 18. Nde2 {[%emt 0:0:45]} c4 {[%emt 0:1:3]} 19. Ba2 {[%emt 0:0:2]} b5 {[%emt 0:0:0]} 20. axb5 {[%emt 0:0:42]} axb5 {[%emt 0:0:1]} 21. Rd1 {[%emt 0:1:13]
} Qa7 {[%emt 0:1:50]} 22. Nd4 {[%emt 0:2:49]} b4 {[%emt 0:0:25]} 23. Bxc4 {[%emt 0:0:1]
} bxc3 {[%emt 0:0:12]} 24. bxc3 {[%emt 0:0:6]} Qc5 {[%emt 0:0:0]} 25. Bb3 {[%emt 0:0:13]} Bc8 {[%emt 0:0:28]} 26. Ba4 {[%emt 0:0:37]} Bd7 {[%emt 0:0:8]} 27. Bb3 {[%emt 0:0:1]} Qh5 {[%emt 0:3:48]} 28. Qxh5 {[%emt 0:1:1]
} Nxh5 {[%emt 0:0:2]} 29. Rf1 {[%emt 0:0:15]} Nf6 {[%emt 0:0:0]} 30. e5 {[%emt 0:0:51]} Re7 {[%emt 0:0:38]} 31. Rfe1 {[%emt 0:0:8]} Ne8 {[%emt 0:0:19]} 32. e6 {[%emt 0:0:19]} fxe6 {[%emt 0:0:19]} 33. f5 {[%emt 0:0:0]} Ne5 {[%emt 0:2:5]} 34. fxe6 {[%emt 0:0:1]} Bc8 {[%emt 0:0:20]} 35. Bxe5 {[%emt 0:0:1]} dxe5 {[%emt 0:0:2]} 36. Nc6 {[%emt 0:0:1]} Rd2 {[%emt 0:0:48]
} 37. Rxe5 {[%emt 0:0:10]} Nf6 {[%emt 0:0:15]} 38. Rb5 {[%emt 0:0:30]
} Rd6 {[%emt 0:0:17]} 39. Nxe7+ {[%emt 0:0:11]} Bxe7 {[%emt 0:0:0]} 40. Rb8 {[%emt 0:0:6]} Rd8 {[%emt 0:0:2]} 41. Ra1 {[%emt 0:0:25]} Ne4 {[%emt 0:0:20]} 42. Bd5 {[%emt 0:0:38]} Ng3+ {[%emt 0:0:14]} 43. Kg1 {[%emt 0:0:18]
} Nf5 {[%emt 0:0:16]} 44. c4 {[%emt 0:0:18]} Bc5+ {[%emt 0:0:0]} 45. Kh1 {[%emt 0:0:6]} Ne7 {[%emt 0:0:4]} 46. Bb7 {[%emt 0:0:32]} Bd6 {[%emt 0:0:19]} 47. Rba8 {[%emt 0:0:1]} 1-0

[Event "FIDE World Rapid-ch Open 2018"]
[White "Shubin, Kirill"]
[Black "Popov, Valerij"]
[Site "St. Petersburg"]
[Round "2.87"]
[Annotator "ChessBase"]
[Result "1/2-1/2"]
[Date "2018.12.26"]
[WhiteElo "2334"]
[BlackElo "2532"]
[PlyCount "75"]
[TimeControl "900+10"]

1. e4 {[%emt 0:0:0]} e6 {[%emt 0:0:0]} 2. d4 {[%emt 0:0:0]} d5 {[%emt 0:0:0]} 3. Nc3 {[%emt 0:0:0]} h6 {[%emt 0:0:0]} 4. e5 {[%emt 0:0:3]} c5 {[%emt 0:0:0]
} 5. f4 {[%emt 0:0:26]} cxd4 {[%emt 0:0:19]} 6. Nb5 {[%emt 0:0:0]} Nc6 {[%emt 0:0:11]} 7. Nf3 {[%emt 0:0:16]} Bc5 {[%emt 0:0:41]} 8. Nbxd4 {[%emt 0:2:17]} Nxd4 {[%emt 0:1:25]} 9. Nxd4 {[%emt 0:0:15]} Qb6 {[%emt 0:0:7]
} 10. Nb3 {[%emt 0:1:24]} Bf2+ {[%emt 0:0:38]} 11. Ke2 {[%emt 0:0:2]
} Bd7 {[%emt 0:0:5]} 12. a4 {[%emt 0:0:49]} Bg1 {[%emt 0:0:0]} 13. Qe1 {[%emt 0:0:41]} Rc8 {[%emt 0:0:6]} 14. Kd1 {[%emt 0:0:39]} Bf2 {[%emt 0:0:40]} 15. a5 {[%emt 0:2:33]} Qxb3 {[%emt 0:0:1]} 16. Qxf2 {[%emt 0:1:21]
} Qb4 {[%emt 0:0:2]} 17. b3 {[%emt 0:1:18]} Qc3 {[%emt 0:0:0]} 18. Ra2 {[%emt 0:0:17]} a6 {[%emt 0:0:6]} 19. Qb6 {[%emt 0:1:21]} Qc7 {[%emt 0:1:2]} 20. Qxc7 {[%emt 0:0:28]} Rxc7 {[%emt 0:0:1]} 21. Ba3 {[%emt 0:0:5]
} Bb5 {[%emt 0:1:52]} 22. Bd6 {[%emt 0:0:50]} Rc6 {[%emt 0:0:0]} 23. Bxb5 {[%emt 0:0:11]} axb5 {[%emt 0:0:0]} 24. a6 {[%emt 0:0:40]} bxa6 {[%emt 0:1:11]} 25. Kd2 {[%emt 0:0:2]} Nf6 {[%emt 0:0:2]} 26. exf6 {[%emt 0:0:24]
} Rxd6 {[%emt 0:0:1]} 27. fxg7 {[%emt 0:0:2]} Rg8 {[%emt 0:0:0]} 28. Rha1 {[%emt 0:0:3]} Rxg7 {[%emt 0:0:1]} 29. g3 {[%emt 0:0:9]} h5 {[%emt 0:0:1]} 30. Rxa6 {[%emt 0:0:15]} Rxa6 {[%emt 0:0:1]} 31. Rxa6 {[%emt 0:0:1]
} h4 {[%emt 0:0:1]} 32. f5 {[%emt 0:0:23]} hxg3 {[%emt 0:0:0]} 33. hxg3 {[%emt 0:0:3]} e5 {[%emt 0:0:9]} 34. Rb6 {[%emt 0:0:59]} Rxg3 {[%emt 0:0:23]} 35. Rxb5 {[%emt 0:0:4]} Rg2+ {[%emt 0:0:19]} 36. Kd3 {[%emt 0:0:24]
} Rg3+ {[%emt 0:0:7]} 37. Kd2 {[%emt 0:0:3]} Rg2+ {[%emt 0:0:0]} 38. Kd3 {[%emt 0:0:1]} 1/2-1/2

[Event "FIDE World Rapid-ch Open 2018"]
[White "Geller, Jakov"]
[Black "Dubrovin, Robert"]
[Site "St. Petersburg"]
[Round "2.88"]
[Annotator "ChessBase"]
[Result "1-0"]
[Date "2018.12.26"]
[WhiteElo "2518"]
[BlackElo "2220"]
[PlyCount "114"]
[TimeControl "900+10"]

1. e4 {[%emt 0:0:0]} e6 {[%emt 0:0:0]} 2. d4 {[%emt 0:0:0]} d5 {[%emt 0:0:0]} 3. Nc3 {[%emt 0:0:0]} Bb4 {[%emt 0:0:0]} 4. e5 {[%emt 0:0:2]} Ne7 {[%emt 0:0:6]} 5. a3 {[%emt 0:0:2]} Bxc3+ {[%emt 0:0:1]} 6. bxc3 {[%emt 0:0:2]
} c5 {[%emt 0:0:1]} 7. Qg4 {[%emt 0:0:3]} 0-0 {[%emt 0:0:3]
} 8. Bd3 {[%emt 0:1:18]} Nbc6 {[%emt 0:0:2]} 9. Nf3 {[%emt 0:0:27]} f5 {[%emt 0:0:17]
} 10. exf6 {[%emt 0:1:56]} Rxf6 {[%emt 0:0:1]} 11. Qh5 {[%emt 0:0:29]
} g6 {[%emt 0:2:19]} 12. Qh4 {[%emt 0:0:55]} Nf5 {[%emt 0:0:0]} 13. Bxf5 {[%emt 0:0:59]} Rxf5 {[%emt 0:0:13]} 14. Qxd8+ {[%emt 0:1:49]} Nxd8 {[%emt 0:0:0]} 15. dxc5 {[%emt 0:0:2]} e5 {[%emt 0:1:33]} 16. Be3 {[%emt 0:0:29]
} Bd7 {[%emt 0:0:57]} 17. 0-0-0 {[%emt 0:1:16]} Bc6 {[%emt 0:0:0]} 18. Rhe1 {[%emt 0:0:9]} Ne6 {[%emt 0:0:43]} 19. Kb2 {[%emt 0:1:40]} Rd8 {[%emt 0:1:17]} 20. Nh4 {[%emt 0:2:4]} Rf7 {[%emt 0:0:16]} 21. Nf3 {[%emt 0:0:55]
} Rf5 {[%emt 0:0:19]} 22. h4 {[%emt 0:0:34]} d4 {[%emt 0:1:25]
} 23. cxd4 {[%emt 0:0:56]} Bxf3 {[%emt 0:0:3]} 24. gxf3 {[%emt 0:0:2]} exd4 {[%emt 0:0:4]} 25. Bg5 {[%emt 0:0:13]} Nxg5 {[%emt 0:0:46]} 26. hxg5 {[%emt 0:0:2]
} Rxf3 {[%emt 0:1:37]} 27. Re7 {[%emt 0:0:21]} Rf7 {[%emt 0:0:0]} 28. Rxf7 {[%emt 0:0:57]} Kxf7 {[%emt 0:0:1]} 29. Kb3 {[%emt 0:0:1]} Rd5 {[%emt 0:0:22]} 30. Kc4 {[%emt 0:0:11]} Rxg5 {[%emt 0:0:3]} 31. Rb1 {[%emt 0:0:10]
} b6 {[%emt 0:0:34]} 32. cxb6 {[%emt 0:0:27]} axb6 {[%emt 0:0:0]} 33. Rxb6 {[%emt 0:0:2]} h5 {[%emt 0:0:2]} 34. Kxd4 {[%emt 0:0:22]} Rf5 {[%emt 0:0:28]} 35. Ke3 {[%emt 0:0:35]} Rc5 {[%emt 0:0:20]} 36. Kd3 {[%emt 0:0:19]
} h4 {[%emt 0:0:7]} 37. Rb1 {[%emt 0:0:22]} h3 {[%emt 0:0:28]
} 38. a4 {[%emt 0:0:5]} Rh5 {[%emt 0:1:3]} 39. Rh1 {[%emt 0:0:31]} Ke6 {[%emt 0:0:52]
} 40. a5 {[%emt 0:0:8]} Rxa5 {[%emt 0:1:44]} 41. Rxh3 {[%emt 0:0:5]
} Kf5 {[%emt 0:0:27]} 42. Rf3+ {[%emt 0:0:21]} Ke5 {[%emt 0:0:0]} 43. Re3+ {[%emt 0:0:2]} Kf4 {[%emt 0:0:14]} 44. Re6 {[%emt 0:0:35]} g5 {[%emt 0:0:4]} 45. c4 {[%emt 0:0:10]} Rf5 {[%emt 0:0:40]} 46. Re3 {[%emt 0:0:0]} g4 {[%emt 0:0:9]} 47. Kd4 {[%emt 0:0:1]} Ra5 {[%emt 0:0:4]} 48. Re2 {[%emt 0:0:4]} Kf3 {[%emt 0:0:4]} 49. Rc2 {[%emt 0:0:3]} Ra8 {[%emt 0:0:23]
} 50. c5 {[%emt 0:0:2]} Rd8+ {[%emt 0:0:4]} 51. Ke5 {[%emt 0:0:0]} Re8+ {[%emt 0:0:4]} 52. Kf5 {[%emt 0:0:35]} Rc8 {[%emt 0:0:23]} 53. c6 {[%emt 0:0:7]} Rc7 {[%emt 0:0:11]} 54. Rc3+ {[%emt 0:0:18]} Kxf2 {[%emt 0:0:6]
} 55. Kxg4 {[%emt 0:0:1]} Ke2 {[%emt 0:0:5]} 56. Kf5 {[%emt 0:0:3]
} Kd2 {[%emt 0:0:1]} 57. Rc5 {[%emt 0:0:1]} Kd3 {[%emt 0:0:0]} 1-0